Cogmind - Beta 15 @@@ ROGUE MODE // 2025.08.01 @ 18:15:40 Player: aloola Result: Destroyed by D-53 Grenadier with Mini Grenade Launcher Performance ------------- Evolutions (0) 0 Regions Visited (4) 800 Robots Destroyed (20) 100 Value Destroyed (327) 327 Prototype IDs (2) 40 Alien Tech Used (0) 0 Bonus (0) 0 TOTAL SCORE: 1267 Bonus ------- None Cogmind --------- Core Integrity 0/250 Matter 283/300 Energy 100/100 System Corruption 0% Temperature Cool (0) Movement Walking (190) Ox1 Location -9/Mines Parts ------- > --- POWER (1) -------- (None) > --- PROPULSION (2) --- Aluminum Leg Aluminum Leg > --- UTILITY (2) ------ High-capacity Storage Unit > --- WEAPON (2) ------- (None) > --- INVENTORY (20) --- Ion Engine Aluminum Leg Scrap Suit Signal Interpreter Improved Terrain Scanner Seismic Detector Transport Network Coupler Hacking Suite Light Assault Rifle Grenade Launcher Datajack Mining Claw Peak State ------------ > --- POWER ------------ Light Nuclear Core > --- PROPULSION ------- Aluminum Leg Aluminum Leg > --- UTILITY ---------- Large Storage Unit High-capacity Storage Unit > --- WEAPON ----------- Assault Rifle Light Assault Rifle > --- INVENTORY -------- Ion Engine Aluminum Leg Aluminum Leg Aluminum Leg Scrap Suit Improved Terrain Scanner Seismic Detector Transport Network Coupler Light Armor Plating Hacking Suite Light Assault Rifle Grenade Launcher Datajack Mining Claw [Rating: 11] Favorites ----------- Power Light Nuclear Core Engine Light Ion Engine Power Core Light Nuclear Core Propulsion Aluminum Leg Leg Aluminum Leg Utility Large Storage Unit Device Seismic Detector Storage Large Storage Unit Protection Light Armor Plating Weapon Assault Rifle Ballistic Gun Assault Rifle Launcher Grenade Launcher Build | -11 -10 -10 -10 -9 ------- Run | Yrd Mat Min Exi Min Slots Evolved . | . . . . . Power . | . . . . . Propulsion . | . . . . . Utility . | . . . . . Weapon . | . . . . . Parts Attached 18 | 7 1 5 . 5 Power 2 | 1 . 1 . . Engine 1 | 1 . . . . Core 1 | . . 1 . . Reactor . | . . . . . Propulsion 7 | 2 . 2 . 3 Treads . | . . . . . Leg 7 | 2 . 2 . 3 Wheel . | . . . . . Hover . | . . . . . Flight . | . . . . . Utility 5 | 2 1 1 . 1 Device 1 | 1 . . . . Storage 3 | 1 1 1 . . Processor . | . . . . . Hackware . | . . . . . Protection 1 | . . . . 1 Artifact . | . . . . . Weapon 4 | 2 . 1 . 1 Energy Gun . | . . . . . Energy Cannon . | . . . . . Ballistic Gun 3 | 2 . 1 . . Ballistic Cannon . | . . . . . Launcher 1 | . . . . 1 Special Weapon . | . . . . . Impact Weapon . | . . . . . Slashing Weapon . | . . . . . Piercing Weapon . | . . . . . Special Melee Weapon . | . . . . . Unidentified Prototypes . | . . . . . Parts Lost 8 | . . 1 . 7 Power 1 | . . . . 1 Propulsion 4 | . . 1 . 3 Utility 1 | . . . . 1 Weapon 2 | . . . . 2 Highest Loss Streak 7 | . . 1 . 7 To Critical Strikes . | . . . . . Average Backups 13 | 1 9 14 15 14 Power . | . 1 1 1 1 Propulsion 3 | . 2 4 4 3 Utility 4 | . 3 5 6 6 Weapon 2 | . 2 2 3 3 Tool/Special . | . . . . . Unused Backups 15 | . 2 3 . 10 Power 2 | . . 1 . 1 Propulsion 3 | . 1 1 . 1 Utility 6 | . 1 . . 5 Weapon 3 | . . 1 . 2 Tool/Special 1 | . . . . 1 Average Slot Usage (%) 85 | . 88 85 85 77 Engine 3 | . 14 . . . Core 10 | . . 13 14 7 Leg 28 | . 28 28 28 28 Storage 14 | . 14 14 14 14 Ballistic Gun 27 | . 28 28 28 20 Peak Build Rating 11 | 7 8 11 10 11 Average Rating 8 | 5 6 9 10 8 On Entrance 6 | . 7 7 10 10 Naked Turns . | . . . . . Heaviest Build 48 | 12 26 48 48 48 Greatest Support 20 | 20 20 20 20 20 Greatest Overweight (x) 3 | 3 1 2 2 2 Average Overweight (x) 1 | . . 1 2 1 Largest Inventory Capacity 20 | 8 15 20 20 20 Average Capacity 16 | 7 12 16 20 20 Most Carried 17 | 4 15 16 16 17 Average Carried 13 | 1 9 15 16 15 Final Capacity 20 | 8 15 20 20 20 Final Carried 16 | 4 15 16 16 13 Class Distribution -------------------- 58% | Mutant 41% | Scavenger-Mutant Dominant Class ---------------- Mutant | -10/Materials Mutant | -10/Mines Scavenger-Mutant | -10/Exiles Scavenger-Mutant | -9/Mines Resources | -11 -10 -10 -10 -9 ----------- Run | Yrd Mat Min Exi Min Matter Collected 626 | 302 134 113 . 77 Remotely . | . . . . . Salvage Created 746 | 150 310 240 . 46 Parts 43 | 10 26 7 . . Haulers Intercepted 2 | . 2 . . . Recyclers Shooed 1 | . 1 . . . Parts Field Recycled . | . . . . . Retrieved Matter . | . . . . . Parts Self-Destructed . | . . . . . Prevented . | . . . . . Kills | -11 -10 -10 -10 -9 ------- Run | Yrd Mat Min Exi Min Combat Hostiles Destroyed 20 | . 7 4 . 9 Guns 12 | . 7 4 . 1 AOE 8 | . . . . 8 Classes Destroyed 7 | 2 4 . . 1 Tunneler 4 | 3 . 1 . . Hauler 2 | . 2 . . . Recycler 2 | 1 . 1 . . Operator 1 | . 1 . . . Swarmer 5 | . 3 2 . . Grunt 6 | . 4 2 . . Assembled 9 | . . . . 9 Best Kill Streak 8 | 4 3 2 . 8 Combat Bots Only 8 | . 3 2 . 8 Max Kills in Single Turn 3 | 1 1 1 . 3 Gunslinging . | . . . . . Exploded 3 | . . . . 3 Melee . | . . . . . Uniques/NPCs Destroyed . | . . . . . Combat | -11 -10 -10 -10 -9 -------- Run | Yrd Mat Min Exi Min Hostile Shots Fired 76 | . 28 15 . 33 Missed 24 | . 12 4 . 8 Hits 52 | . 16 11 . 25 Projectile 52 | . 16 11 . 25 AOE 19 | . . . . 19 Critical Strikes 1 | . 1 . . . Damage Taken 1134 | . 167 149 . 818 Core 251 | . 23 17 . 211 Absorbed by Shields . | . . . . . Core Remaining (%) 100 | 100 . . . . Volleys Fired 65 | 8 31 17 . 9 Largest 2 | 2 2 2 . 2 Hottest 40 | 40 40 40 . 40 Shots Fired 123 | 16 62 34 . 11 Gun 117 | 16 62 34 . 5 Cannon . | . . . . . Launcher 6 | . . . . 6 Special . | . . . . . Kinetic 117 | 16 62 34 . 5 Thermal . | . . . . . Explosive 6 | . . . . 6 Electromagnetic . | . . . . . Robot Hit Streak 12 | 6 12 6 . 8 Robot Miss Streak 3 | 1 3 2 . 2 Penetration Max . | . . . . . Secondary Targets 1 | . 1 . . . Max Gunslinging Chain 1 | . 1 . . . Shots Hit Robots 82 | 11 42 22 . 7 Core Hits 50 | 5 18 11 . 16 Critical Kills . | . . . . . Critical Parts Destroyed 1 | . . 1 . . Critical Strikes 1 | . . 1 . . Destroy 1 | . . 1 . . Melee Attacks . | . . . . . Impact . | . . . . . Slashing . | . . . . . Piercing . | . . . . . Sneak Attacks . | . . . . . Combat Hostiles . | . . . . . Follow-up Attacks . | . . . . . Damage Inflicted 1315 | 126 451 230 . 508 Guns 836 | 126 451 230 . 29 Cannons . | . . . . . Explosions 479 | . . . . 479 Melee . | . . . . . Ramming . | . . . . . Kinetic 836 | 126 451 230 . 29 Thermal . | . . . . . Explosive 479 | . . . . 479 Electromagnetic . | . . . . . Impact . | . . . . . Slashing . | . . . . . Piercing . | . . . . . Highest Corruption . | . . . . . Average Corruption . | . . . . . Corruption Purged . | . . . . . Corruption Blocked . | . . . . . Overload Shots . | . . . . . Overflow Damage 12 | . . . . 12 Projectiles . | . . . . . Explosions 12 | . . . . 12 Melee . | . . . . . Knockbacks . | . . . . . Impact . | . . . . . Kinetic . | . . . . . Secondary . | . . . . . Self-Inflicted Damage . | . . . . . Shots . | . . . . . Rammed . | . . . . . Targets Rammed . | . . . . . Kicked . | . . . . . Crushed . | . . . . . Highest Temperature 26 | . 12 26 . 4 Average Temperature 7 | . 6 8 . 3 Received Heat Transfer 138 | . 66 72 . . Siege Activations . | . . . . . Martial Activations . | . . . . . Shielding Activations . | . . . . . Robots Disrupted . | . . . . . Combat Hostiles . | . . . . . Robots Corrupted . | . . . . . Combat Hostiles . | . . . . . Parts Fried . | . . . . . Impact Corruptions . | . . . . . Robots Melted . | . . . . . Combat Hostiles . | . . . . . Parts Melted . | . . . . . Heat Transferred . | . . . . . Parts Sabotaged . | . . . . . Parts Stolen . | . . . . . Parts Stripped . | . . . . . Power Chain Reactions . | . . . . . Alert | -11 -10 -10 -10 -9 ------- Run | Yrd Mat Min Exi Min Maximum Alert Level . | . . . . . Low Security (%) 100 | 100 100 100 . 100 Level 1 . | . . . . . Level 2 . | . . . . . Level 3 . | . . . . . Level 4 . | . . . . . Level 5 . | . . . . . High Security . | . . . . . Max Security . | . . . . . Peak Influence 60 | 10 60 40 . 29 Initial . | . . . . . Average 6 | 1 16 2 . 4 Influence Increases 348 | 20 199 100 . 29 Destroy 0b10 Robot/C 220 | . 140 80 . . Destroy 0b10 Robot/NC 45 | 20 15 10 . . Destroy Leader 34 | . 24 10 . . Successful Hack 20 | . 20 . . . Destroy Structure 29 | . . . . 29 Influence Decreases 348 | 20 199 100 . 29 Time Decay 319 | 20 199 90 . 10 Lost Part 29 | . . 10 . 19 Squads Dispatched 4 | . 4 . . . Investigation 1 | . 1 . . . Extermination . | . . . . . Reinforcement 3 | . 3 . . . Assault . | . . . . . Garrison . | . . . . . Intercept . | . . . . . Searches Triggered . | . . . . . Construction Impeded . | . . . . . Haulers Reinforced . | . . . . . Active Scanning Responses . | . . . . . Cargo Convoy Interrupts . | . . . . . Stealth | -11 -10 -10 -10 -9 --------- Run | Yrd Mat Min Exi Min Distress Signals 3 | . 3 . . . Communications Jammed . | . . . . . Distress Signals . | . . . . . Times Spotted 36 | . 16 7 . 13 Peak Tracking Total 8 | . 5 3 . 8 Tactical Retreats . | . . . . . Traps | -11 -10 -10 -10 -9 ------- Run | Yrd Mat Min Exi Min Traps Triggered . | . . . . . Indirectly . | . . . . . Trap Hack Attempts . | . . . . . Triggered . | . . . . . Disarmed . | . . . . . Reprogrammed . | . . . . . Reused . | . . . . . Traps Extracted . | . . . . . Installed . | . . . . . Triggered . | . . . . . Machines | -11 -10 -10 -10 -9 ---------- Run | Yrd Mat Min Exi Min Machines Disabled . | . . . . . Max in Single Turn . | . . . . . Machines Repaired . | . . . . . Machines Dismantled . | . . . . . Machines Sabotaged . | . . . . . Overloaded Fab Kills . | . . . . . Hacking | -11 -10 -10 -10 -9 --------- Run | Yrd Mat Min Exi Min Machines Accessed 4 | . 4 . . . Terminals 4 | . 4 . . . Fabricators . | . . . . . Repair Stations . | . . . . . Recycling Units . | . . . . . Scanalyzers . | . . . . . Garrison Access . | . . . . . Total Hacks 14 | . 14 . . . Successful 7 | . 7 . . . Failed 7 | . 7 . . . Catastrophic . | . . . . . Database Lockouts . | . . . . . Manual 12 | . 12 . . . Terminals 14 | . 14 . . . Fabricators . | . . . . . Repair Stations . | . . . . . Recycling Units . | . . . . . Scanalyzers . | . . . . . Garrison Access . | . . . . . Terminal Hacks 5 | . 5 . . . Robot Analysis 1 | . 1 . . . Prototype ID Bank 1 | . 1 . . . Branch Access Points 1 | . 1 . . . Alert Level 1 | . 1 . . . Surveillance Status 1 | . 1 . . . Fabricator Hacks . | . . . . . Repair Station Hacks . | . . . . . Recycling Unit Hacks . | . . . . . Scanalyzer . | . . . . . Garrison Access Hacks . | . . . . . Unauthorized Hacks 2 | . 2 . . . Terminals 2 | . 2 . . . Botnet 2 | . 2 . . . Fabricators . | . . . . . Repair Stations . | . . . . . Recycling Units . | . . . . . Scanalyzers . | . . . . . Garrison Access . | . . . . . Data Cores Recovered . | . . . . . Used . | . . . . . Hacking Detections 3 | . 3 . . . Full Trace Events . | . . . . . Feedback Events . | . . . . . Feedback Blocked . | . . . . . Robot Schematics Acquired . | . . . . . Robots Built . | . . . . . Authchips . | . . . . . Time . | . . . . . Total Robot Build Rating . | . . . . . Part Schematics Acquired . | . . . . . Parts Built . | . . . . . Authchips . | . . . . . Time . | . . . . . Total Part Build Rating . | . . . . . Parts Repaired . | . . . . . Time . | . . . . . Parts Recycled . | . . . . . Recycled Matter . | . . . . . Retrieved Matter . | . . . . . Retrieved Components . | . . . . . Parts Scanalyzed . | . . . . . Part Schematics Acquired . | . . . . . Parts Damaged . | . . . . . Bothacking | -11 -10 -10 -10 -9 ------------ Run | Yrd Mat Min Exi Min Used RIF Installer . | . . . . . Robots Hacked . | . . . . . Non-combat . | . . . . . Combat . | . . . . . Robot Hacks Applied . | . . . . . Relay Couplers Released . | . . . . . Fabnet Peak Effective % . | . . . . . Robots Rewired . | . . . . . Allies Hacked . | . . . . . Hacks Repelled . | . . . . . Allies | -11 -10 -10 -10 -9 -------- Run | Yrd Mat Min Exi Min Total Allies 3 | . . 3 . . Largest Group 3 | . . 3 3 3 Highest-Rated Group 40 | . . 40 40 40 Highest-Rated Ally 16 | . . 16 16 16 Total Orders . | . . . . . Ally Attacks 13 | . . . . 13 Total Damage 127 | . . . . 127 Kills 3 | . . . . 3 Allies Corrupted . | . . . . . Allies Melted . | . . . . . Intel | -11 -10 -10 -10 -9 ------- Run | Yrd Mat Min Exi Min Active Infowar (turns) 186 | 21 165 . . . Seismic 186 | 21 165 . . . Robot Analysis Total 1 | . 1 . . . Derelict Logs Recovered 1 | . . 1 . . Drone Launches . | . . . . . Drone Recoveries . | . . . . . Exploration | -11 -10 -10 -10 -9 ------------- Run | Yrd Mat Min Exi Min Turns Passed 2991 | 120 665 1377 729 100 Spaces Moved 1343 | 73 316 644 281 29 Core 22 | 22 . . . . Treads . | . . . . . Legs 1321 | 51 316 644 281 29 Wheels . | . . . . . Hover . | . . . . . Flight . | . . . . . Fastest Speed 50 | 50 120 190 260 190 Average Speed 201 | 108 162 203 260 240 Slowest Speed 260 | 200 190 260 260 260 Overloaded Moves . | . . . . . Propulsion Burnouts . | . . . . . Robots Hopped . | . . . . . Potential Cave-ins . | . . . . . Cave-ins Triggered . | . . . . . Exploration Rate (%) 50 | 4 58 98 75 16 Regions Visited 4 Branch Regions 3 Pre-discovered Areas 2 | . . 2 . . Known Exits Taken 1 | . 1 . . . Unknown Exits Taken 3 | 1 . 1 1 . Scrap Searched 3 | . . 2 . 1 Spaces Dug . | . . . . . Terrain Destroyed 44 | . . . . 44 Melee . | . . . . . Projectile . | . . . . . AOE 44 | . . . . 44 Terrain Rammed . | . . . . . Walls Destroyed . | . . . . . Machines Disabled . | . . . . . Actions | -11 -10 -10 -10 -9 --------- Run | Yrd Mat Min Exi Min Total 1528 | 96 414 689 281 48 Wait 65 | 3 50 8 1 3 Move 1339 | 72 315 643 280 29 Hop . | . . . . . Pick Up 24 | 5 12 6 . 1 Fast Attach 9 | 7 1 1 . . Attach 5 | . . 1 . 4 Detach 3 | . 2 1 . . Swap 5 | . . 3 . 2 Drop 13 | 1 3 9 . . Fire 65 | 8 31 17 . 9 Melee . | . . . . . Ram . | . . . . . Kick . | . . . . . Crush . | . . . . . Escape Stasis . | . . . . . Rewire . | . . . . . Trap . | . . . . . Miscellaneous . | . . . . . Route ------- -11/Scrapyard -10/Materials (discovered 2 exits: [*Mat] / *Min) -10/Mines (discovered 3 exits: [*Mat x2] / *Exi) -10/Exiles -9/Mines History --------- Turn | Location | Event 10 | -11/Scrapyard | Discovered new exit (range 14) 121 | -11/Scrapyard | Entered Materials 122 | -10/Materials | Met a group of wandering Federalists 129 | -10/Materials | Identified exit to Mines 188 | -10/Materials | Lost 3 allies 307 | -10/Materials | Build established: Mutant 603 | -10/Materials | Discovered new exit (range 15) 786 | -10/Materials | Entered Mines 805 | -10/Mines | Met a Derelict bent on vengeance 1166 | -10/Mines | Discovered new exit (range 5) 1478 | -10/Mines | Deemed a non-threat by the Exiles lab entrance 1478 | -10/Mines | Discovered new exit (range 5) 1535 | -10/Mines | Found a Scrap Suit stashed away for nefarious purposes 1540 | -10/Mines | Found Scrap Suit 1549 | -10/Mines | Discovered new exit (range 11) 1551 | -10/Mines | Learned location of Storage (-7) 1644 | -10/Mines | Assisted by bots powering up and referring to "LRC-V3" 2031 | -10/Mines | Build established: Scavenger-Mutant 2163 | -10/Mines | Entered Exiles 2163 | -10/Exiles | Accompanied by 3 allies 2234 | -10/Exiles | Met 8R-AWN 2270 | -10/Exiles | Met EX-HEX 2371 | -10/Exiles | Met EX-DEC 2510 | -10/Exiles | Visited The Gauntlet 2871 | -10/Exiles | Discovered new exit (range 10) 2892 | -10/Exiles | Entered Mines 2892 | -9/Mines | Accompanied by 3 allies 2893 | -9/Mines | Assembled infested the area 2898 | -9/Mines | Assisted by a Guerilla fighting off Assembled 2962 | -9/Mines | Lost 4 allies 2967 | -9/Mines | Destroyed 8 combat bots 2979 | -9/Mines | Core integrity fell below 50% 2983 | -9/Mines | Core integrity fell below 20% 2992 | -9/Mines | Destroyed by D-53 Grenadier with Mini Grenade Launcher Last Messages --------------- 02956_ T-07 Excavator is excavating. 02961_ Acquired 73 matter. 02963_ U-05 Engineer lays Concrete. 02964_ Aluminum Leg destroyed. 02964_ T-07 Excavator is excavating. 02965_ U-05 Engineer lays Concrete. 02966_ The unstable cave ceiling collapses. 02967_ U-05 Engineer lays Concrete. 02967_ Assault Rifle destroyed. 02969_ The unstable cave ceiling collapses. 02969_ U-05 Engineer builds a Wall. 02970_ The unstable cave ceiling collapses. 02972_ Lgt. Armor Plating destroyed. 02972_ U-05 Engineer lays Concrete. 02974_ Lgt. Assault Rifle destroyed. 02974_ Aluminum Leg destroyed. 02974_ U-05 Engineer builds a Wall. 02977_ The unstable cave ceiling collapses. 02982_ Aluminum Leg destroyed. 02983_ The unstable cave ceiling collapses. Map ----- +----------------------------------------------------+ | | | | | | | | | | | ????????????????????????????????????? | | ????????????????????????????????????? | | ????????????????????????????????????? | | ????????????????????????????????????? | | ????????????#####???????????????????? | | ????????????# ##??????????????????? | | ????????????# ??????????????????? | | ????????????# ?????????????? ???? | | ????????????# ????????????? #??? | | ????????????# ??######????# #??? | | ?????????##### #### ##??# #??? | | ????????## ## ### #??? | | ????????# ## #??? | | ????????# ### #???? | | ????????## ## #???? | | ???????#### ## ####? | | ???????# # $ # | | ???????# !! # | | ???????## t dd ! ! # | | ???????# # ! ! ? | | ???????## # # @## !!! ? | | ???????## ##?????????? | | ????? # # ##??????????? | | ??? ### ##### ###???????????? | | ??? ?# ????###?????????????? | | ???# ??# ????????????????????? | | ???## ???# " ????????????????????? | | ????#????# % ????????????????????? | | ???????? # ????????????????????? | | ???????? # ????????????????????? | | ??????? # ????????????????????? | | ?????????? ????????????????????? | | ???????????? ?????????????????????? | | ??????????????#?????????????????????? | | ????????????????????????????????????? | | ????????????????????????????????????? | | ????????????????????????????????????? | | ????????????????????????????????????? | | ????????????????????????????????????? | | ????????????????????????????????????? | | ????????????????????????????????????? | | ????????????????????????????????????? | | ????????????????????????????????????? | | ????????????????????????????????????? | | ????????????????????????????????????? | +----------------------------------------------------+ Best States ------------- Heat Dissipation 25 Energy Generation 14 Energy Capacity 160 Matter Stores 300 Matter Capacity 300 Sight Range 16 Terrain Scan Density 10 Armor Coverage 150 Evasion (%) 55 Item Schematics ----------------- None Robot Schematics ------------------ None Fabricated ------------ Nothing Repaired ---------- Nothing Alien Tech Used ----------------- None Achievements -------------- None Challenges ------------ None Game ------ Seed CargoGlidesysPick Manual? 0 Play Time 00:22:17 Cumulative 121.1 hours Start 2025.08.01 @ 17:43:44 End 2025.08.01 @ 18:15:40 Sessions 2 Manual Loads 0 Difficulty Rogue Special Mode None Game No. 54 Rogue 54 Adventurer 0 Explorer 0 Win Type - Total 8 Types 8/0/0/0/0/0/0/0/0/0 Lore% 64 Gallery% 58 Achievement% 46 Wizard Run 0 Options --------- Layout 0 ASCII 0 Keyboard 1 Movement Numpad Keybinds 0 Fullscreen 1 Font 18/Cog Map View 76x50 Zoom Use 0% Tactical HUD 1 Map Filters NONE Filters NONE Steam 1 RUN: bf47524d-15dd-4483-9c52-83328be19a5d